bitfinex/quotes_ETHUSD_20220120
["timestamp","ask_amount","ask_price","bid_price","bid_amount"]
[1642717512687,1.552062,3074.0,3073.6,18.44]
[1642717512888,0.01023162,3074.5,3073.7,0.16216]
[1642717513087,5.65120335,3075.1,3073.9,3.561524]
[1642717513088,1.54297399,3074.4,3073.9,3.561524]
[1642717513289,3.8524,3075.1,3073.9,4.374734]
[1642717513290,1.54297399,3074.3,3073.9,4.374734]
[1642717513488,1.54297399,3074.2,3074.0,19.44]
[1642717513689,0.01193689,3074.8,3074.0,19.44]
[1642717513937,2.87472756,3075.5,3074.0,19.44]
[1642717513938,0.00795793,3074.1,3074.0,19.74]
[1642717514139,0.01136847,3074.7,3074.0,20.887]
[1642717514337,0.00795793,3074.1,3074.0,21.36622]
[1642717514537,0.01080005,3074.6,3074.0,25.8056324]
[1642717514736,1.54742706,3074.5,3074.2,1.62613]
[1642717514937,1.54742706,3074.4,3074.3,1.22194646]
[1642717515337,1.54742706,3074.4,3074.3,2.22194646]
[1642717515738,0.01307374,3075.0,3074.4,0.8131017]
[1642717515939,0.01307374,3075.0,3074.4,2.6262117]
[1642717515940,1.50376859,3074.9,3074.4,2.6262117]
[1642717516239,0.01193689,3074.8,3074.4,21.0662117]
[1642717516441,0.01193689,3074.8,3074.5,19.60216]
[1642717516637,1.44679862,3075.6,3074.5,19.60216]
[1642717516638,0.01136847,3074.7,3074.5,19.90216]
[1642717517037,0.01080005,3074.6,3074.5,20.71524]
[1642717517441,0.01080005,3074.6,3074.5,19.25308]
[1642717517700,0.01080005,3074.6,3074.5,20.25308]
[1642717518088,5.37389862,3075.8,3075.1,1.54192075]
[1642717518089,5.33469867,3075.8,3075.1,1.54192075]
[1642717518290,1.47419098,3075.7,3074.6,0.8130911]
[1642717518488,4.45894239,3075.7,3074.6,0.8130911]
[1642717518690,1.47419098,3075.6,3074.5,2.237]
[1642717519102,0.00511581,3075.5,3075.0,1.42541411]
[1642717519300,1.47419098,3075.4,3075.0,1.42541411]
[1642717519498,1.47419098,3075.3,3075.0,1.42541411]
[1642717519697,1.47419098,3075.2,3075.0,1.42541411]
[1642717519897,0.00341054,3075.2,3075.0,1.42541411]
[1642717520097,1.35565453,3075.7,3075.0,2.42541411]
[1642717520297,1.35565453,3075.7,3075.2,1.22753134]
[1642717520498,1.35906507,3075.7,3075.2,1.22753134]
[1642717521531,1.35906507,3075.7,3075.2,19.66753134]
[1642717521738,1.35906507,3075.7,3075.2,1.22753134]
[1642717521932,1.35906507,3075.7,3075.3,1.0]
[1642717522132,1.35906507,3075.7,3075.2,1.22753134]
[1642717522934,1.35906507,3075.7,3075.3,0.8129102]
[1642717523135,1.35906507,3075.7,3075.3,1.6258402]
[1642717523336,1.35906507,3075.7,3075.3,2.6258402]
[1642717525286,0.00341054,3075.7,3075.4,0.16216]
[1642717525488,0.00341054,3075.7,3075.4,0.975]
[1642717525687,0.00341054,3075.7,3075.4,19.415]
[1642717525896,0.00341054,3075.7,3075.4,20.25284]
[1642717526089,3.6689,3076.7,3075.4,20.25284]
[1642717526090,3.6689,3076.7,3076.3,1.24687361]
[1642717526291,1.44679862,3077.2,3076.3,0.06503474]
[1642717526490,1.44679862,3077.2,3075.6,18.60216]
[1642717526491,1.84474878,3076.6,3075.8,1.62555]
[1642717526893,1.84474878,3076.6,3075.9,0.16216]
[1642717526894,0.00454739,3076.5,3075.9,0.16216]
[1642717527391,1.83963297,3076.6,3076.4,1.31849463]
[1642717527692,0.00454739,3076.5,3076.4,1.31849463]
[1642717528695,0.00454739,3076.5,3076.4,1.48065463]
[1642717528961,0.00454739,3076.5,3076.4,2.08065463]
[1642717529159,0.00454739,3076.5,3076.4,2.21065463]
[1642717529564,0.00454739,3076.5,3076.4,3.21065463]
[1642717529759,0.00454739,3076.5,3076.4,2.91065463]
[1642717529960,3.6963,3077.7,3076.5,18.44]
[1642717530160,3.6963,3077.7,3076.6,1.97472]
[1642717530361,0.00625266,3077.6,3076.7,0.3]
[1642717530562,0.00625266,3077.6,3076.7,0.6]
[1642717530768,0.00568424,3077.5,3076.8,0.16216]
[1642717530964,0.00568424,3077.5,3077.3,1.15508613]
[1642717531163,1.42242952,3078.2,3077.3,1.15508613]
[1642717531164,0.00511581,3077.4,3077.3,1.15508613]
[1642717531662,0.00909478,3077.4,3077.3,1.15508613]
[1642717533492,0.00909478,3077.4,3076.9,1.0]
[1642717533692,0.00429932,3077.3,3076.9,1.0]
[1642717533893,0.1298,3077.2,3076.9,0.06662292]
[1642717534190,0.01152831,3077.1,3076.5,2.0]
[1642717534390,0.01152831,3077.1,3075.5,0.00113685]
[1642717534391,1.12943142,3076.6,3075.5,0.00113685]
[1642717534606,0.813,3076.5,3075.6,1.54126064]
[1642717534989,0.813,3076.5,3075.7,0.00454739]
[1642717535489,0.81293,3076.8,3075.7,0.00454739]
[1642717535891,0.00113685,3076.7,3075.7,0.00454739]
[1642717536091,5.08463385,3076.7,3075.7,0.00454739]
[1642717536291,5.083497,3076.7,3075.7,0.00454739]
[1642717536528,6.38285926,3076.7,3075.7,0.00454739]
[1642717536930,3.6209,3076.7,3075.7,0.00454739]
[1642717537134,0.813,3076.5,3075.7,0.00454739]
[1642717537335,3.6209,3076.7,3075.7,0.00454739]
[1642717537336,3.6209,3076.7,3075.8,0.16216]
[1642717537539,3.6209,3076.7,3075.9,0.13]
[1642717537734,3.6209,3076.7,3075.9,18.57341054]
[1642717537938,3.6209,3076.7,3076.1,0.07710431]
[1642717538134,3.6209,3076.7,3076.6,1.23194381]
[1642717538334,0.00170527,3076.8,3076.6,1.23194381]
[1642717538535,0.00113685,3076.7,3076.6,1.23194381]
[1642717540398,0.00113685,3076.7,3076.6,2.48512314]
[1642717540596,0.00113685,3076.7,3076.6,2.64728314]
[1642717540996,0.00113685,3076.7,3076.6,3.48512314]
[1642717542199,0.00113685,3076.7,3076.6,3.64728314]
[1642717542599,0.00113685,3076.7,3076.6,22.08728314]
[1642717543806,0.00113685,3076.7,3076.6,22.21728314]
[1642717544035,3.6369,3078.0,3076.9,0.81248]
[1642717544236,3.6369,3078.0,3077.3,1.37186089]
[1642717544437,0.00682108,3077.9,3077.0,22.15533081]
[1642717544637,0.00682108,3077.9,3077.0,23.15533081]
[1642717544835,0.00625266,3077.8,3077.0,19.8698]
[1642717545236,0.00568423,3077.7,3077.1,1.09794006]
[1642717545634,0.00511581,3077.6,3077.1,3.26010006]
[1642717545834,3.7557,3078.1,3077.9,1.54710506]
[1642717545835,3.71081581,3078.1,3077.9,1.54710506]
[1642717546035,3.8937,3078.7,3077.2,1.00227369]
[1642717546336,3.8937,3078.7,3077.3,0.00170527]
[1642717546337,0.00227369,3078.0,3077.3,0.00170527]
[1642717546736,0.87930757,3078.6,3077.2,0.13207369]
[1642717546737,0.00170527,3077.9,3077.2,0.13207369]
[1642717546936,0.00170527,3077.9,3077.3,0.00170527]
[1642717547134,0.00113685,3077.8,3077.3,0.00170527]
[1642717547542,0.88442338,3078.5,3078.0,1.29613422]
[1642717547784,0.87930757,3078.4,3078.0,0.11683972]
[1642717547984,0.87930757,3078.3,3077.6,0.81243]
[1642717548183,0.00397896,3078.3,3077.6,0.81243]
[1642717548385,0.00341054,3078.2,3077.6,0.81243]
[1642717548783,0.00284212,3078.1,3077.6,0.81243]
[1642717549184,0.00454739,3078.4,3077.6,0.81243]
[1642717549387,0.87687811,3078.3,3077.6,0.81243]
[1642717549584,0.88085707,3078.3,3077.6,0.81243]
[1642717549786,0.88028865,3078.2,3077.6,0.81243]
[1642717549987,0.00341054,3078.2,3078.1,1.53030041]
[1642717550289,5.83088678,3078.8,3078.1,1.53030041]
[1642717550686,0.00625266,3078.7,3078.1,1.53030041]
[1642717551088,0.00568423,3078.6,3078.1,1.53030041]
[1642717551533,0.00511581,3078.5,3078.1,1.53030041]
[1642717551936,4.56476,3078.8,3078.1,1.53030041]
[1642717551937,4.46930739,3078.8,3078.1,2.34263041]
[1642717552340,0.00170527,3078.7,3078.2,0.00113685]
[1642717552541,0.00170527,3078.7,3078.2,0.30113685]
[1642717552740,0.00113684,3078.6,3078.2,0.00113685]
[1642717552943,3.64990727,3078.8,3078.2,0.00113685]
[1642717553139,3.64990727,3078.8,3078.2,0.00227369]
[1642717553544,3.64990727,3078.8,3078.2,1.62671369]
[1642717553840,3.64990727,3078.8,3078.3,0.30170527]
[1642717554041,3.64990727,3078.8,3078.4,0.1298]
[1642717554239,3.64990727,3078.8,3078.4,0.13093684]
[1642717554642,3.64990727,3078.8,3078.7,1.54963456]
[1642717554843,3.822,3079.3,3078.7,1.54963456]
[1642717555040,0.81219,3079.4,3078.7,1.54963456]
[1642717555041,0.00113685,3078.8,3078.7,1.54963456]
[1642717555488,0.00397897,3079.3,3078.7,1.54963456]
[1642717555890,0.00341054,3079.2,3078.7,1.54963456]
[1642717556289,0.00284212,3079.1,3078.7,1.54963456]
[1642717556693,0.0022737,3079.0,3078.7,1.54963456]
[1642717557189,0.00170527,3078.9,3078.7,1.54963456]
[1642717557590,0.00454739,3079.4,3078.7,1.54963456]
[1642717557993,0.00397897,3079.3,3078.7,1.54963456]
[1642717558392,0.00341054,3079.2,3078.7,1.54963456]
[1642717558592,0.00341054,3079.2,3078.8,0.1298]
[1642717558792,0.00284212,3079.1,3078.8,0.1298]
[1642717559336,0.0022737,3079.0,3078.8,0.1298]
[1642717559538,0.0022737,3079.0,3078.8,0.3]
[1642717559737,0.0022737,3079.0,3078.6,0.16226]
[1642717559738,0.00284211,3078.9,3078.6,0.16226]
[1642717560141,3.6062,3079.6,3078.8,0.16226]
[1642717560339,3.6062,3079.6,3079.2,1.26543125]
[1642717560541,3.6062,3079.6,3078.9,0.1299]
[1642717560542,1.00394307,3079.1,3078.9,0.1299]
[1642717560939,0.00341054,3079.0,3078.9,0.1299]
[1642717561139,0.00341054,3079.0,3078.9,0.29215]
[1642717561540,0.00341054,3079.0,3078.9,0.16225]
[1642717561741,0.00341054,3079.0,3078.5,0.46225]
[1642717562141,0.00284211,3078.9,3078.5,0.16225]
[1642717562547,0.00227369,3078.8,3078.5,0.16225]
[1642717562786,0.00227369,3078.8,3078.6,1.32103272]
[1642717562985,0.00170527,3078.7,3078.6,1.62103272]
[1642717563189,0.00170527,3078.7,3078.6,2.08328272]
[1642717563589,0.00170527,3078.7,3078.6,1.32103272]
[1642717563786,0.00170527,3078.7,3078.6,1.62103272]
[1642717564187,0.00170527,3078.7,3078.6,1.78328272]
[1642717564386,0.00170527,3078.7,3078.6,2.98441768]
[1642717564986,0.00170527,3078.7,3078.6,3.98441768]
[1642717565288,0.00170527,3078.7,3078.6,1.78328272]
[1642717565486,0.00170527,3078.7,3078.6,2.78328272]
[1642717565990,0.00170527,3078.7,3078.6,1.78328272]
[1642717566186,0.00170527,3078.7,3078.6,2.78328272]
[1642717567042,0.00170527,3078.7,3078.6,3.08328272]
[1642717568646,0.00170527,3078.7,3078.6,3.21308272]
[1642717568845,0.00170527,3078.7,3078.6,21.65308272]
[1642717569045,0.00170527,3078.7,3078.6,3.21308272]
[1642717569446,0.00170527,3078.7,3078.6,1.61308272]
[1642717569947,0.00170527,3078.7,3078.6,1.48328272]
[1642717570581,0.00170527,3078.7,3078.6,2.78328272]
[1642717570783,0.00170527,3078.7,3078.6,2.08328272]
[1642717570987,1.00394307,3079.1,3078.8,0.81203]
[1642717571185,1.00394307,3079.1,3079.0,0.16225]
[1642717572388,1.44679862,3080.1,3079.0,0.97419]
[1642717572688,0.09015791,3080.0,3079.0,0.16225]
[1642717572888,0.0073895,3080.0,3079.0,0.16225]
[1642717573186,5.11419862,3080.2,3079.0,0.16225]
[1642717573187,0.00682108,3079.9,3079.0,0.16225]
[1642717573390,1.15519998,3079.7,3079.0,0.16225]
[1642717573789,0.00511581,3079.6,3079.0,0.16225]
[1642717574256,0.00454739,3079.5,3078.8,0.46225]
[1642717574656,0.00397896,3079.4,3078.8,0.46225]
[1642717575057,0.00341054,3079.3,3078.8,0.46225]
[1642717575456,0.00284211,3079.2,3078.9,0.81199]
[1642717575657,0.00284211,3079.2,3078.8,1.27428]
[1642717575856,0.00227369,3079.1,3078.8,1.27428]
[1642717576056,0.00227369,3079.1,3078.9,1.46796806]
[1642717576261,0.00170527,3079.0,3078.9,1.46796806]
[1642717576457,0.00170527,3079.0,3078.9,1.63021806]
[1642717579900,0.00170527,3079.0,3078.9,0.29205]
[1642717581441,0.00170527,3079.0,3078.9,1.52582984]
[1642717582845,0.00170527,3079.0,3078.9,1.39602984]
[1642717585349,0.00170527,3079.0,3078.9,1.69602984]
[1642717587246,0.00170527,3079.0,3078.9,2.50809984]
[1642717587746,0.00170527,3079.0,3078.9,1.69602984]
[1642717589348,1.218625,3079.9,3079.0,0.24829473]
[1642717589648,0.00454739,3079.8,3079.0,0.24829473]
[1642717589849,1.45134601,3079.8,3079.0,0.24829473]
[1642717590050,0.00397896,3079.7,3079.0,0.24829473]
[1642717590450,0.00341054,3079.6,3079.0,0.24829473]
[1642717590852,0.00284212,3079.5,3079.0,1.87240473]
[1642717591050,0.00284212,3079.5,3079.0,2.17240473]
[1642717591253,0.00227369,3079.4,3079.0,2.17240473]
[1642717591659,0.00170527,3079.3,3079.0,2.17240473]
[1642717591855,0.00170527,3079.3,3079.1,0.812]
[1642717592058,1.44679862,3080.1,3079.2,0.16225]
[1642717592351,1.44679862,3080.1,3079.3,0.81198]
[1642717592551,0.00511581,3079.9,3079.4,1.21746409]
[1642717592789,0.13779503,3079.8,3079.5,0.16225]
[1642717592989,0.13779503,3079.7,3079.4,1.21746409]
[1642717593191,0.13779503,3079.6,3079.4,1.21746409]
[1642717593389,0.13779503,3079.5,3079.4,1.21746409]
[1642717593591,0.00284212,3079.5,3079.4,1.21746409]
[1642717593789,0.00284212,3079.5,3079.4,1.37971409]
[1642717598030,0.14063715,3079.5,3079.4,1.37971409]
[1642717598232,0.00284212,3079.5,3079.4,1.37971409]
[1642717600485,0.00284212,3079.5,3079.4,1.21746409]
[1642717602688,0.14063715,3079.5,3079.4,1.21746409]
[1642717602886,0.00284212,3079.5,3079.4,1.21746409]
[1642717603689,0.14063715,3079.5,3079.4,1.21746409]
[1642717604135,0.00284212,3079.5,3079.4,1.21746409]
[1642717604640,1.05072173,3080.7,3079.4,1.21746409]
[1642717604836,3.8916,3081.1,3080.2,0.01246963]
[1642717605036,3.8916,3081.1,3080.3,1.274]
[1642717605238,7.5043,3081.6,3080.3,1.274]
[1642717605436,7.5043,3081.6,3080.4,0.1298]
[1642717605637,0.01080004,3081.4,3080.5,0.81157]
[1642717606036,0.01023162,3081.3,3080.7,1.62315]
[1642717606438,7.5043,3081.6,3080.7,1.62315]
[1642717606439,0.00966319,3081.2,3080.7,1.62315]
[1642717606639,0.00966319,3081.2,3080.7,2.43472]
[1642717606839,0.00909477,3081.1,3080.7,2.43472]
[1642717607040,0.00909477,3081.1,3080.8,1.9230915]
[1642717607246,0.00852635,3081.0,3080.9,18.44]
[1642717607440,0.00852635,3081.0,3080.9,21.23470018]
[1642717607683,3.8038,3082.0,3081.1,0.81132]
[1642717607684,3.56232635,3082.0,3081.1,0.81132]
[1642717608084,0.00511581,3081.9,3081.1,1.11132]
[1642717608284,0.00511581,3081.9,3081.2,0.16214]
[1642717608487,0.00454738,3081.8,3081.2,0.16214]
[1642717608687,0.00454738,3081.8,3081.3,0.81132]
[1642717608887,3.56232635,3082.0,3081.3,1.21697871]
[1642717608888,0.00397896,3081.7,3081.3,1.21697871]
[1642717609088,0.00397896,3081.7,3081.4,1.1113]
[1642717609289,3.56232635,3082.0,3081.4,1.1113]
[1642717609290,0.00341054,3081.6,3081.4,1.1113]
[1642717609490,0.00341054,3081.6,3081.4,1.9226]
[1642717609691,3.56232635,3082.0,3081.4,1.9226]
[1642717609692,0.00284211,3081.5,3081.4,1.6226]
[1642717609893,0.00284211,3081.5,3081.4,2.95744608]
[1642717610891,0.00284211,3081.5,3081.4,3.25744608]
[1642717611949,1.5232309,3082.6,3081.8,0.81115]
[1642717612147,1.5232309,3082.6,3082.0,0.8111971]
[1642717612345,0.00568424,3082.5,3082.0,0.8111971]
[1642717612549,0.00568424,3082.5,3082.3,1.529986]
[1642717612749,0.00511582,3082.4,3082.3,1.529986]
[1642717613757,0.00511582,3082.4,3082.2,1.6223576]
[1642717613951,0.00511582,3082.4,3081.4,0.16214]
[1642717614150,1.5232309,3082.6,3081.4,0.16214]
[1642717614151,0.00454739,3082.3,3081.4,0.16214]
[1642717614353,0.00454739,3082.3,3081.5,3.09238]
[1642717614553,0.00397897,3082.2,3081.5,3.09238]
[1642717614751,0.00397897,3082.2,3081.8,1.21422859]
[1642717614951,1.5232309,3082.6,3081.8,1.21422859]
[1642717614952,0.00341055,3082.1,3081.8,1.21422859]
[1642717615188,1.27664145,3082.6,3081.8,1.21422859]
[1642717615389,0.00511582,3082.4,3081.9,0.00113685]
[1642717615794,0.00113684,3082.3,3081.9,0.00113685]
[1642717616092,1.26316014,3082.4,3081.9,0.00113685]
[1642717616492,0.00113684,3082.3,3081.9,0.00113685]
[1642717616893,0.00113684,3082.3,3081.9,0.81244685]
[1642717617097,0.00113684,3082.3,3081.9,0.30113685]
[1642717617492,0.00113684,3082.3,3081.9,0.00113685]
[1642717617893,0.00113684,3082.3,3081.9,0.81241685]
[1642717618293,1.27664145,3082.6,3081.9,1.62364685]
[1642717618294,1.02948356,3082.6,3081.9,1.62364685]
[1642717618496,1.02948356,3082.6,3082.0,0.00170527]
[1642717618696,0.00113685,3082.5,3082.0,0.00170527]
[1642717618934,0.00113685,3082.5,3082.0,2.43518237]
[1642717619138,0.00113685,3082.5,3082.0,2.73518237]
[1642717619341,0.00113685,3082.5,3082.1,0.81230684]
[1642717619539,0.00113685,3082.5,3082.3,1.43531035]
[1642717619737,1.02948356,3082.6,3082.3,1.43531035]
[1642717619738,0.88062041,3082.6,3082.3,1.43531035]
[1642717619939,0.88062041,3082.6,3082.3,2.24646035]
[1642717620139,0.88062041,3082.6,3082.4,0.3]
[1642717621440,0.88062041,3082.6,3082.4,1.9221716]
[1642717622544,0.49007298,3083.7,3082.5,0.27639994]
[1642717622801,0.49007298,3083.7,3083.0,0.8109]
[1642717623008,0.00341054,3083.1,3083.0,0.8109]
[1642717623401,0.49007298,3083.7,3083.0,0.8109]
[1642717623402,0.44348352,3083.7,3083.5,1.44399892]
[1642717623802,0.00284212,3083.6,3083.5,0.91240271]
[1642717624000,0.00284212,3083.6,3083.5,0.81240271]
[1642717627143,0.00284212,3083.6,3083.5,1.27454271]
[1642717627341,0.00284212,3083.6,3083.5,0.81240271]
[1642717628351,0.00284212,3083.6,3083.5,1.11240271]
[1642717628644,1.27591546,3083.6,3083.5,1.11240271]
[1642717628842,1.27591546,3083.6,3083.5,1.27454271]
[1642717629443,1.27591546,3083.6,3083.5,1.57454271]
[1642717629643,1.27591546,3083.6,3083.5,1.27454271]
[1642717629843,0.00284212,3083.6,3083.5,1.27454271]
[1642717630489,1.66745555,3084.8,3083.7,0.8107]
[1642717630887,0.00625266,3084.7,3083.7,1.18339207]
[1642717631088,0.00625266,3084.7,3083.7,0.3]
[1642717631290,0.00568423,3084.6,3083.7,0.3]
[1642717631595,0.47495496,3084.9,3083.8,0.16214]
[1642717631596,0.00511581,3084.5,3083.8,0.16214]
[1642717631789,0.00511581,3084.5,3084.3,1.53411713]
[1642717631989,0.47495496,3084.9,3084.3,1.53411713]
[1642717631990,0.00454738,3084.4,3084.3,1.53411713]
[1642717632189,0.00454738,3084.4,3084.3,1.99625713]
[1642717632391,0.00682108,3084.4,3084.3,1.99625713]
[1642717632592,0.47495496,3084.9,3084.3,1.99625713]
[1642717632794,0.47495496,3084.9,3084.4,0.1296]
[1642717632994,0.47495496,3084.9,3084.8,1.43592921]
[1642717633198,1.95387583,3085.5,3084.8,1.59806921]
[1642717633397,1.95387583,3085.5,3084.8,1.89806921]
[1642717633600,0.00341054,3085.4,3084.8,1.89806921]
[1642717633798,0.00341054,3085.4,3084.8,2.02756921]
[1642717634052,0.00284212,3085.3,3084.8,2.02756921]
[1642717634451,0.00227369,3085.2,3084.8,2.02756921]
[1642717634651,0.00227369,3085.2,3084.8,3.02756921]
[1642717634853,0.00170527,3085.1,3084.8,0.1295]
[1642717635051,0.00170527,3085.1,3084.8,0.16214]
[1642717635252,0.00170527,3085.1,3084.6,1.62064]
[1642717635253,0.00113685,3085.0,3084.9,18.44]
[1642717635555,0.1142,3086.4,3084.9,18.73143]
[1642717635760,0.1142,3086.4,3085.0,0.9398]
[1642717636056,0.00227369,3085.4,3085.2,0.01263389]
[1642717636256,1.50779752,3086.7,3085.3,0.29143]
[1642717636651,0.00511581,3086.3,3085.3,3.29143]
[1642717636856,1.31469009,3086.1,3085.4,1.62029]
[1642717637056,1.06469009,3086.1,3085.6,0.8101237]
[1642717637253,1.06469009,3086.1,3085.7,0.16193]
[1642717637454,1.06469009,3086.1,3085.7,0.16534054]
[1642717637745,0.00170527,3086.6,3085.8,0.00284212]
[1642717638142,0.00113685,3086.5,3085.8,0.00284212]
[1642717638541,0.00113685,3086.5,3085.9,1.63936979]
[1642717638942,0.00113685,3086.5,3086.0,0.00170527]
[1642717639342,0.00113685,3086.5,3086.0,0.04125828]
[1642717639543,0.00113685,3086.5,3086.0,1.00170527]
[1642717639743,0.00113685,3086.5,3086.1,0.00113685]
[1642717640145,0.00113685,3086.5,3086.1,0.81005]
[1642717640346,1.29651872,3086.8,3086.2,1.29186111]
[1642717640545,1.29651872,3086.8,3086.2,1.29356638]
[1642717640748,1.29651872,3086.8,3086.3,0.00113685]
[1642717641146,1.32249751,3086.5,3086.3,0.00113685]
[1642717641344,1.29651872,3086.8,3086.3,0.00113685]
[1642717641551,1.29651872,3086.8,3086.3,0.05117893]
[1642717641749,1.29651872,3086.8,3086.2,0.00170527]
[1642717641948,1.29651872,3086.8,3086.3,1.0]
[1642717642149,0.00284211,3087.0,3086.4,1.32875398]
[1642717642550,0.00227369,3086.9,3086.4,2.13872398]
[1642717642950,0.00170527,3086.8,3086.4,3.13872398]
[1642717643150,2.55726673,3087.1,3086.4,3.13872398]
[1642717643357,1.42607302,3087.1,3086.5,0.00170527]
[1642717643557,0.00113684,3087.0,3086.5,0.00170527]
[1642717643752,0.00113684,3087.0,3086.7,0.04893021]
[1642717643950,1.42607302,3087.1,3086.4,3.08925032]
[1642717643951,0.00227369,3086.9,3086.4,2.08925032]
[1642717644153,0.00227369,3086.9,3086.4,1.32875398]
[1642717644354,1.37777829,3087.1,3086.4,1.32875398]
[1642717644552,1.37777829,3087.1,3086.6,0.0126508]
[1642717644751,0.00113684,3087.0,3086.6,0.1421508]
[1642717644951,0.00113684,3087.0,3086.6,18.5821508]
[1642717645197,0.00113684,3087.0,3086.7,18.5482792]
[1642717645396,1.37777829,3087.1,3086.8,0.1295]
[1642717645595,1.37777829,3087.1,3086.8,1.94042684]
[1642717645795,1.37777829,3087.1,3086.8,0.94042684]
[1642717645997,1.37777829,3087.1,3086.8,0.00113684]
[1642717646595,1.37777829,3087.1,3086.9,1.52854144]
[1642717646796,1.37777829,3087.1,3086.8,0.00113684]
[1642717651851,1.37777829,3087.1,3086.8,0.00913684]
[1642717653098,1.37777829,3087.1,3086.9,0.05435663]
[1642717653298,1.37777829,3087.1,3086.8,0.00913684]
[1642717657848,1.37777829,3087.1,3086.9,0.03899859]
[1642717658048,1.37777829,3087.1,3086.8,0.00913684]
[1642717659948,1.37777829,3087.1,3086.9,0.04096266]
[1642717660202,1.37777829,3087.1,3086.8,0.00913684]
[1642717661803,1.37777829,3087.1,3086.9,0.06105517]
[1642717662005,1.37777829,3087.1,3086.8,1.62886684]
[1642717662201,1.37777829,3087.1,3086.8,0.81900684]
[1642717662501,1.37777829,3087.1,3086.8,1.81900684]
[1642717663304,1.37777829,3087.1,3086.9,0.26805629]
[1642717664344,1.37777829,3087.1,3087.0,0.26805629]
[1642717665147,1.32777829,3087.1,3087.0,0.26805629]
[1642717667898,1.22777829,3087.1,3087.0,0.26805629]
[1642717672044,1.22777829,3087.1,3087.0,0.27605629]
[1642717674354,1.22777829,3087.1,3087.0,0.008]
[1642717677803,1.22777829,3087.1,3087.0,1.08594629]
[1642717680052,1.22777829,3087.1,3087.0,2.08594629]
[1642717680250,1.22777829,3087.1,3087.0,2.38594629]
[1642717680648,1.22777829,3087.1,3087.0,20.82594629]
[1642717680848,1.22777829,3087.1,3087.0,2.38594629]
[1642717682151,1.22777829,3087.1,3087.0,20.82594629]
[1642717684796,1.22777829,3087.1,3087.0,20.95544629]
[1642717685900,1.22777829,3087.1,3087.0,20.82594629]
[1642717688153,1.22777829,3087.1,3087.0,23.57474069]
[1642717688354,2.38447449,3087.8,3087.4,18.70805629]
[1642717688553,2.38447449,3087.8,3087.6,1.07773629]
[1642717688755,2.38447449,3087.9,3087.7,0.26805629]
[1642717688953,2.38447449,3088.0,3087.7,0.26805629]
[1642717689158,2.39015873,3088.0,3087.7,0.26805629]
[1642717689957,2.39015873,3088.0,3087.8,0.26805629]
[1642717690198,4.1576,3089.1,3087.7,0.80968]
[1642717690199,5.58381801,3089.1,3087.9,0.01290276]
[1642717690402,5.58381801,3089.1,3087.7,0.80968]
[1642717690403,5.37767654,3089.7,3088.8,0.01222118]
[1642717690602,8.0694691,3090.6,3088.0,0.13819997]
[1642717690603,0.00113685,3088.2,3088.0,0.13819997]
[1642717690996,0.00122211,3088.7,3088.0,0.13819997]
[1642717690997,0.00122211,3088.7,3088.1,0.16195]
[1642717691201,0.00122211,3088.7,3088.3,0.80953]
[1642717691401,0.00341054,3088.6,3088.3,0.80953]
[1642717691801,0.00284212,3088.5,3088.3,0.80953]
[1642717692202,0.00227369,3088.4,3088.3,1.61907]
[1642717692801,0.00227369,3088.4,3088.3,0.3]
[1642717693105,1.5727058,3089.8,3088.4,0.07654458]
[1642717693500,1.5727058,3089.8,3088.3,1.10955]
[1642717693501,0.00113685,3088.6,3088.3,1.10955]
[1642717693801,0.76067685,3089.7,3088.3,2.72863]
[1642717694048,0.76067685,3089.7,3088.4,0.00113685]
[1642717694249,1.06692951,3089.7,3088.4,0.00113685]
[1642717694650,0.76692951,3089.7,3088.4,2.42969685]
[1642717694848,1.06692951,3089.7,3088.4,2.42969685]
[1642717695048,1.06692951,3089.7,3088.5,0.3]
[1642717695250,0.80958,3089.6,3088.5,0.3]
[1642717695654,0.00511581,3089.5,3088.4,0.00113685]
[1642717696050,0.66412739,3089.6,3088.4,0.81067685]
[1642717696249,0.66412739,3089.6,3088.4,0.81522424]
[1642717696548,0.3,3089.7,3088.5,0.00511581]
[1642717696751,1.10952,3089.8,3088.5,0.00511581]
[1642717696949,0.00113684,3089.6,3088.5,0.00511581]
[1642717697150,3.23815064,3089.5,3088.6,0.1293]
[1642717697349,0.00113684,3089.6,3088.6,0.93879]
[1642717697350,3.23928748,3089.6,3088.6,0.93879]
[1642717697550,3.18928748,3089.6,3088.7,0.00397897]
[1642717697800,3.18928748,3089.6,3088.7,0.00511581]
[1642717698203,2.42262211,3089.3,3088.7,0.00511581]
[1642717698400,0.80952,3089.8,3088.7,0.00511581]
[1642717699199,1.83187506,3089.7,3088.7,0.00511581]
[1642717700500,1.83187506,3089.9,3088.7,0.00511581]
[1642717701004,0.00113685,3089.8,3088.7,0.00511581]
[1642717701473,0.80953,3089.7,3088.7,0.00511581]
[1642717702072,0.00113685,3089.8,3088.7,0.00511581]
[1642717702372,0.81066685,3089.8,3088.8,0.1293]
[1642717702671,0.81066685,3089.8,3088.9,0.00397896]
[1642717703474,0.76066685,3089.8,3088.9,0.00397896]
[1642717703973,1.61906,3090.0,3088.9,0.00511581]
[1642717703974,0.80947,3090.0,3088.9,0.00511581]
[1642717705702,0.80953,3089.8,3088.9,0.00511581]
[1642717707211,0.81061685,3090.0,3089.0,0.04655309]
[1642717707407,0.81061685,3090.0,3089.1,0.1293]
[1642717707608,0.81061685,3090.0,3089.1,0.00397896]
[1642717708512,0.81061685,3090.0,3089.2,0.16195]
[1642717708710,0.00113685,3090.0,3089.3,0.1293]
[1642717708944,0.00113685,3090.0,3089.3,0.00284212]
[1642717709150,0.00113685,3090.0,3089.4,0.13157369]
[1642717709347,0.00113685,3090.0,3089.3,0.00284212]
[1642717709551,0.00113685,3090.0,3089.5,0.00170527]
[1642717709752,0.00113685,3090.0,3089.3,0.13214212]
[1642717709952,0.00113685,3090.0,3089.5,0.00170527]
[1642717710151,0.00113685,3090.0,3089.4,0.00227369]
[1642717710352,0.00113685,3090.0,3089.2,0.00341054]
[1642717710553,0.00337181,3090.0,3089.3,0.1293]
[1642717710952,3.32457181,3090.1,3089.4,0.00227369]
[1642717711156,0.002235,3090.0,3089.4,0.00341054]
[1642717711553,0.002235,3090.0,3089.2,0.00454739]
[1642717711953,0.002235,3090.0,3089.3,0.008]
[1642717712357,0.002235,3090.0,3089.4,0.00341054]
[1642717713406,3.22680681,3090.1,3089.4,0.00341054]
[1642717713815,0.16157,3091.0,3089.4,0.01639237]
[1642717714012,0.00446992,3090.9,3089.5,0.0883201]
[1642717714211,0.11717677,3091.0,3089.5,0.81210212]
[1642717714413,1.83479099,3090.8,3089.6,0.00341055]
[1642717714612,1.83479099,3090.8,3089.6,1.62188055]
[1642717714813,0.00284211,3090.7,3089.6,1.62188055]
[1642717715012,0.00284211,3090.7,3089.7,0.00284212]